[Event "German Bundesliga 2024-25"]
[Site "Germany"]
[Date "2025.01.11"]
[Round "5.5"]
[White "Van Wely, Loek"]
[Black "Maurizzi, Marc`Andria"]
[Result "1/2-1/2"]
[Annotator "TA"]
[ECO "E43"]
[WhiteElo "2608"]
[BlackElo "2585"]
[PlyCount "112"]
[EventDate "2024.09.27"]
[EventType "team-tourn"]
[EventCountry "GER"]
[SourceTitle "playchess.com"]
[Source "ChessBase"]
[SourceQuality "1"]
[WhiteTeam "SG Solingen"]
[BlackTeam "St. Pauli"]
[TimeControl "40/5400+30:1800+30"]

{[%evp 22,112,8,8,4,0,0,0,15,0,0,0,0,0,0,0,0,0,0,0,0,0,0,0,0,-44,-49,-59,-72,-79,-36,-63,-39,-46,-33,-40,-38,-36,-31,-39,-19,-14,-15,-36,-35,-47,-16,-77,-72,-64,-72,-72,-70,-84,-62,-53,-75,-89,-52,-34,-34,-46,-35,-94,-104,-104,-107,-107,-119,-126,-103,-92,-81,-91,-38,-38,-38,-38,-38,-43,-33,-33,-8,-8,-8,-15,0,0,0,-15,0,0,0]} 1. d4 {[%emt 0:00:37]} Nf6 {[%emt 0:00:16]} 2. c4 {[%emt 0:00:10]} e6 {[%emt 0:00:03]} 3. Nc3 {[%emt 0:00:36]} Bb4 {[%emt 0:00:30]} 4. Nf3 {[%emt 0:03:42]} b6 {[%emt 0:01:43]} 5. e3 {[%emt 0:01:18]} Bb7 {[%emt 0:00:59]} 6. Bd3 {[%emt 0:00:08]} O-O {[%emt 0:00:26]} 7. O-O {[%emt 0:00:09]} c5 {[%emt 0:00:02]} 8. Na4 {[%emt 0:01:31]} cxd4 {[%emt 0:00:31]} 9. a3 {[%emt 0:00:48]} Be7 {[%emt 0:00:08]} 10. exd4 {[%emt 0:00:05]} Bxf3 {[%emt 0:00:35]} 11. Qxf3 {[%emt 0:00:07]} Nc6 {[%emt 0:00:01]} 12. Be3 {[%emt 0:12:43]} e5 {[%emt 0:00:22]} 13. d5 {[%emt 0:06:02]} e4 $1 {[%emt 0:00:28]} 14. Bxe4 {[%emt 0:00:08]} Ne5 {[%emt 0:00:03]} 15. Qf4 {[%emt 0:00:52]} Bd6 $1 {[%emt 0:08:49]} 16. c5 {[%emt 0:12:05]} Ng6 {[%emt 0:04:40]} 17. Qf3 {[%emt 0:00:49]} (17. Qxd6 $2 Nxe4 $19) 17... Nh4 {[%emt 0:10:49]} 18. Qh3 {[%emt 0:02:34]} Nxe4 {[%emt 0:06:08]} 19. cxd6 {[%emt 0:00:31]} Ng6 {[%emt 0:06:17]} 20. Nc3 {[%emt 0:06:23]} Nxd6 {[%emt 0:03:01]} 21. Rfe1 {[%emt 0:02:55]} Re8 {[%emt 0:19:33]} 22. a4 {[%emt 0:13:31]} Qf6 {[%emt 0:07:37]} 23. Qg4 {[%emt 0:10:11]} Ne5 {[%emt 0:05:46]} 24. Qg5 {[%emt 0:02:21]} Qxg5 {[%emt 0:04:17]} 25. Bxg5 {[%emt 0:00:03]} Nd3 {[%emt 0:00:28]} 26. Re7 {[%emt 0:06:18]} Rad8 {[%emt 0:07:25]} 27. Nb5 {[%emt 0:05:15]} Nf5 {[%emt 0:02:38]} 28. Rxe8+ {[%emt 0:02:09]} Rxe8 {[%emt 0:00:03]} 29. Nxa7 {[%emt 0:03:26]} h6 {[%emt 0:05:13]} 30. Bd2 {[%emt 0:00:30]} Re2 {[%emt 0:00:38]} 31. Bc3 {[%emt 0:01:04]} Rc2 {[%emt 0:05:51]} 32. Rb1 {[%emt 0:05:16]} Nxf2 {[%emt 0:00:31]} 33. Nb5 $1 {[%emt 0:00:53]} ({But not} 33. Nc8 $2 Ng4 34. Kh1 (34. Nxb6 $2 {too greedy.} Nfe3 $19) 34... Nfe3 $19) 33... Ne4 {[%emt 0:00:36]} 34. Nd4 {[%emt 0:00:45] [#]} (34. Re1 $11 Nxc3 35. Re8+ Kh7 36. bxc3) 34... Nxd4 $1 $17 {[%emt 0:00:28]} 35. Bxd4 {[%emt 0:00:05]} Rc4 {[%emt 0:00:05]} 36. Bxb6 {[%emt 0:00:28]} Rxa4 {[%emt 0:00:05]} 37. Rd1 {[%emt 0:01:17]} Rb4 {[%emt 0:00:29]} 38. Bd4 {[%emt 0:00:38]} Rb5 {[%emt 0:00:04]} 39. Bc3 {[%emt 0:00:35]} Nxc3 {[%emt 0:00:41]} 40. bxc3 {[%emt 0:00:02]} Rc5 {[%emt 0:00:10]} 41. Rd3 {[%emt 0:03:48]} Kf8 {[%emt 0:01:12]} 42. d6 {[%emt 0:04:35]} (42. Kf2 $15) 42... f6 $17 {[%emt 0:01:02]} 43. Kf2 {[%emt 0:05:53]} Kf7 {[%emt 0:02:53]} 44. h4 {[%emt 0:02:03]} Ke6 {[%emt 0:02:34]} 45. g4 {[%emt 0:06:03]} Rd5 {[%emt 0:09:53]} 46. Re3+ {[%emt 0:00:26]} Kxd6 {[%emt 0:00:35]} 47. Re8 {[%emt 0:00:17]} Re5 {[%emt 0:09:36]} ({Better is} 47... Rd2+ $17 48. Ke3 Rc2) 48. Rg8 $15 {[%emt 0:01:26]} Re7 {[%emt 0:00:02]} 49. Kf3 {[%emt 0:00:46]} Ke5 {[%emt 0:00:44]} 50. Rc8 {[%emt 0:02:21]} d6 {[%emt 0:02:28]} 51. c4 {[%emt 0:04:16]} Rb7 {[%emt 0:03:20]} 52. Re8+ {[%emt 0:01:59]} Kd4 {[%emt 0:00:01]} 53. Rd8 {[%emt 0:01:30]} Kc5 {[%emt 0:01:58]} (53... Kxc4 54. Rxd6 Kc5 55. Rd8) 54. Rc8+ {[%emt 0:01:39]} Kd4 {[%emt 0:00:01]} 55. Rd8 {[%emt 0:00:17]} Kc5 {[%emt 0:01:34]} 56. Rc8+ {[%emt 0:00:44]} Kd4 {[%emt 0:00:45]} 1/2-1/2

[Event "German Bundesliga 2024-25"]
[Site "Germany"]
[Date "2025.01.11"]
[Round "5.5"]
[White "Alonso Rosell, Alvar"]
[Black "Razafindratsima, Timothe"]
[Result "1/2-1/2"]
[Annotator "TA"]
[ECO "E01"]
[WhiteElo "2532"]
[BlackElo "2465"]
[PlyCount "49"]
[EventDate "2024.09.27"]
[EventType "team-tourn"]
[EventCountry "GER"]
[SourceTitle "playchess.com"]
[Source "ChessBase"]
[SourceQuality "1"]
[WhiteTeam "Bayern Muenchen"]
[BlackTeam "Bad Mergentheim"]
[TimeControl "40/5400+30:1800+30"]

{[%evp 10,49,37,29,35,42,41,45,39,41,27,24,46,39,59,59,54,21,50,12,18,19,19,2,21,22,21,0,27,31,29,41,41,51,42,10,66,6,5,5,8,6]} 1. d4 {[%emt 0:00:03]} Nf6 {[%emt 0:00:13]} 2. Nf3 {[%emt 0:00:10]} e6 {[%emt 0:00:16]} 3. c4 {[%emt 0:00:08]} d5 {[%emt 0:00:32]} 4. g3 {[%emt 0:00:05]} Nc6 {[%emt 0:00:59]} 5. Bg2 {[%emt 0:13:53]} Bd6 {[%emt 0:01:25]} 6. O-O {[%emt 0:05:19]} O-O {[%emt 0:00:22]} 7. b3 {[%emt 0:02:25]} Re8 {[%emt 0:00:56]} 8. Bb2 {[%emt 0:04:45]} b6 {[%emt 0:02:11]} 9. Nc3 {[%emt 0:17:57]} Bb7 {[%emt 0:00:27]} 10. Rc1 {[%emt 0:01:11]} Rc8 {[%emt 0:01:53]} 11. Nb5 {[%emt 0:05:56]} a6 {[%emt 0:08:54]} 12. Nxd6 {[%emt 0:04:35]} cxd6 {[%emt 0:00:06]} 13. Nd2 {[%emt 0:05:46]} Rc7 {[%emt 0:14:05]} 14. e4 {[%emt 0:14:19]} Nb4 {[%emt 0:31:17][%csl LRa2,LRe4]} 15. e5 {[%emt 0:07:26]} dxe5 {[%emt 0:02:59]} 16. dxe5 {[%emt 0:00:05]} Nd7 {[%emt 0:00:06]} 17. cxd5 {[%emt 0:02:39]} Rxc1 {[%emt 0:03:15]} 18. Qxc1 {[%emt 0:00:55]} (18. Bxc1 {simplifies} exd5 19. Ba3 a5 20. Bxb4 axb4 21. f4) 18... Nd3 {[%emt 0:13:50]} 19. Qc3 {[%emt 0:06:24]} Nxb2 {[%emt 0:00:48]} 20. Qxb2 {[%emt 0:01:51]} Bxd5 {[%emt 0:07:10]} 21. Bxd5 {[%emt 0:00:11]} exd5 {[%emt 0:00:02]} 22. Nf3 {[%emt 0:00:15]} d4 {[%emt 0:06:01]} 23. e6 {[%emt 0:01:00]} ({Much weaker is} 23. Qxd4 Nxe5 24. Qe4 Nd3 $11) (23. Re1 $1 $14) 23... Rxe6 $11 {[%emt 0:00:50]} 24. Qxd4 {[%emt 0:00:12] Black must now prevent Rd1.} h6 {[%emt 0:00:55]} 25. Rd1 {[%emt 0:03:12]} 1/2-1/2

[Event "German Bundesliga 2024-25"]
[Site "Germany"]
[Date "2025.01.11"]
[Round "5.5"]
[White "Feygin, Michael"]
[Black "Huschenbeth, Niclas"]
[Result "1/2-1/2"]
[Annotator "TA"]
[ECO "D02"]
[WhiteElo "2448"]
[BlackElo "2594"]
[PlyCount "251"]
[EventDate "2024.09.27"]
[EventType "team-tourn"]
[EventCountry "GER"]
[SourceTitle "playchess.com"]
[Source "ChessBase"]
[SourceQuality "1"]
[WhiteTeam "Muelheim Nord"]
[BlackTeam "Hamburg"]
[TimeControl "40/5400+30:1800+30"]

{[%evp 9,251,0,8,5,14,0,0,0,0,13,28,16,13,9,14,18,27,20,17,25,33,22,18,35,34,27,44,27,40,49,43,42,37,16,7,0,0,0,0,0,6,8,58,44,50,50,49,49,50,50,50,65,50,0,0,0,45,45,59,45,59,68,89,59,59,59,59,59,59,59,59,59,59,59,59,59,59,59,59,59,59,59,59,0,59,59,59,59,59,59,52,59,59,0,52,0,66,66,75,75,75,75,75,75,75,75,75,75,75,75,75,75,75,75,75,75,75,75,80,0,0,0,0,0,0,0,0,0,0,0,0,0,0,0,0,0,0,0,0,0,0,0,0,0,0,0,0,0,0,0,0,0,0,0,0,0,0,0,0,0,0,0,0,0,0,0,0,0,0,0,0,0,0,0,0,0,0,0,0,0,0,0,0,0,0,0,0,0,0,0,0,0,0,0,0,0,0,0,0,0,0,0,0,0,0,8,8,0,0,0,0,0,0,0,0,0,0,0,0,0,0,0,0,0,0,0,0,0,0,0,0,0,0,0,0,0,0,0,0,0,0,0,0,0]} 1. d4 {[%emt 2:21:03]} d5 {[%emt 0:00:14]} 2. Nf3 {[%emt 0:00:07]} Nf6 {[%emt 0:00:05]} 3. Bf4 {[%emt 0:00:06]} c5 {[%emt 0:00:15]} 4. e3 {[%emt 0:00:05]} Nc6 {[%emt 0:00:26]} 5. Nbd2 {[%emt 0:00:12]} cxd4 {[%emt 0:00:09]} 6. exd4 {[%emt 0:00:05]} Bf5 {[%emt 0:00:11]} 7. Bb5 {[%emt 0:01:11]} Qb6 {[%emt 0:00:23]} 8. c4 {[%emt 0:00:34]} dxc4 {[%emt 0:00:07]} 9. a4 {[%emt 0:00:18]} Bd3 {[%emt 0:00:13]} (9... e6 10. Nxc4 Bb4+ 11. Bd2 Bxd2+ 12. Qxd2 Qc7) 10. Ne5 {[%emt 0:01:12]} e6 {[%emt 0:00:45]} 11. Ndxc4 {[%emt 0:00:38]} Bb4+ {[%emt 0:00:16]} (11... Qxd4 $2 12. Nxd3 (12. Qxd3 Qxf4 13. g3 Qe4+ 14. Qxe4 Nxe4 $18) 12... Rd8 13. O-O Qxd3 14. Qc1 $18 (14. Nd6+ Qxd6 15. Bxd6 Bxd6 $18)) (11... Bxc4 12. Nxc4 Bb4+ 13. Bd2 Bxd2+ 14. Qxd2 Qc7) 12. Bd2 {[%emt 0:00:10]} Bxc4 {[%emt 0:00:42]} (12... Qxd4 $2 13. Nxd3 (13. Bxb4 Qe4+ 14. Kd2 Bxc4 $17) 13... Bxd2+ (13... Qxd3 $2 14. Bxb4 Qe4+ 15. Kf1 $18) 14. Qxd2 $18 (14. Nxd2 O-O $18)) (12... Bxd2+ {simplifies} 13. Qxd2 Bxc4 14. Nxc4 Qc7) 13. Nxc4 {[%emt 0:02:32]} Bxd2+ {[%emt 0:00:10]} (13... Qxd4 $2 14. Bxb4 O-O-O 15. Qxd4 Nxd4 16. O-O $18) 14. Qxd2 {[%emt 0:00:05]} Qc7 {[%emt 0:00:08]} 15. Ne5 {[%emt 0:01:38]} O-O {[%emt 0:00:11]} 16. Bxc6 {[%emt 0:02:14]} bxc6 {[%emt 0:00:26]} 17. Rc1 {[%emt 0:00:58][%cal Ob2b4]} c5 {[%emt 0:00:17]} 18. Rxc5 {[%emt 0:13:05]} Qb7 {[%emt 0:00:13]} 19. f3 $1 {[%emt 0:07:22]} Nd7 {[%emt 0:00:06]} 20. Rb5 {[%emt 0:10:14]} Qc8 {[%emt 0:21:28]} 21. Ng4 {[%emt 0:34:46]} Rb8 {[%emt 0:25:36]} 22. O-O {[%emt 0:03:58]} Rxb5 {[%emt 0:06:28]} 23. axb5 {[%emt 0:00:02]} Qc4 {[%emt 0:00:20]} 24. Ra1 {[%emt 0:00:24]} Qxb5 {[%emt 0:03:59]} 25. Rxa7 {[%emt 0:00:28]} Qc6 {[%emt 0:17:59]} ({Black should play} 25... Rb8 $11) 26. Qg5 {[%emt 0:06:44][%cal Oa7d7]} h5 {[%emt 0:14:12][%cal Bh7h5,Bh5g4][%mdl 32] [#]} 27. Rxd7 $1 {[%emt 0:06:45]} hxg4 $1 {[%emt 0:00:05]} 28. Rd8 {[%emt 0:00:09]} Rxd8 $1 {[%emt 0:00:13]} 29. Qxd8+ $14 {[%emt 0:00:05][%mdl 4096] Endgame KQ-KQ. White is a pawn up.} Kh7 {[%emt 0:00:03]} 30. Qh4+ $1 {[%emt 0:03:20]} (30. fxg4 Qc1+ 31. Kf2 Qxb2+ 32. Kf3 Qc3+ 33. Ke2 Qc2+ 34. Kf3 Qd3+ 35. Kf2 f6 $11) 30... Kg8 {[%emt 0:00:14]} 31. Qd8+ {[%emt 0:00:05]} ({Don't play} 31. fxg4 Qc1+ 32. Kf2 Qd2+ (32... Qxb2+ 33. Ke3 $15) 33. Kf1 Qd3+ 34. Ke1 Qb1+ (34... Qxd4 35. Qf2 $15) 35. Ke2 Qxb2+ 36. Ke3 Qc1+ (36... Qxg2 37. Qd8+ Kh7 38. Qh4+ Kg6 39. Qh5+ Kf6 40. Qh4+ Kg6 41. Qh5+ Kf6 42. Qh4+ Kg6 $11) 37. Ke4 Qc2+ 38. Ke3 Qb3+ (38... Qxg2 39. Qd8+ Kh7 40. Qh4+ Kg8 41. Qd8+ Kh7 42. Qh4+ Kg6 43. Qh5+ Kf6 44. Qh4+ Kg6 45. Qh5+ Kf6 46. Qh4+ Kg6 $11) 39. Kf4 Qd5 $17) ({White should try} 31. Qxg4 $14 Qc1+ 32. Kf2) 31... Kh7 $11 {[%emt 0:00:03]} 32. Qh4+ {[%emt 0:00:26]} Kg8 {[%emt 0:00:04]} 33. Qxg4 {[%emt 0:00:16]} (33. fxg4 Qc1+ 34. Kf2 Qd2+ (34... Qxb2+ 35. Kf1 $15) 35. Kf1 Qd3+ 36. Ke1 Qb1+ (36... Qxd4 37. Qf2 $11) 37. Ke2 Qxb2+ 38. Kd3 Qb3+ (38... Qxg2 39. Qd8+ Kh7 40. Qh4+ Kg8 41. Qd8+ Kh7 42. Qh4+ Kg8 $11) 39. Ke2 Qd5 $15) 33... Qc1+ {[%emt 0:00:07]} 34. Kf2 {[%emt 0:00:02]} Qxb2+ {[%emt 0:00:09]} 35. Kg3 {[%emt 0:00:07]} Qd2 {[%emt 0:02:16]} 36. Qf4 {[%emt 0:01:54]} Qe1+ {[%emt 0:01:07]} 37. Kh3 {[%emt 0:00:07]} Qf2 {[%emt 0:05:09]} 38. Qb8+ {[%emt 0:03:15]} Kh7 {[%emt 0:00:02]} 39. Qc7 {[%emt 0:00:07]} f6 {[%emt 0:01:23]} 40. Qf7 $1 {[%emt 0:03:54]} Qxd4 {[%emt 0:03:03]} 41. Qh5+ {[%emt 0:00:11]} Kg8 {[%emt 0:00:04]} 42. Qe8+ {[%emt 0:00:05]} Kh7 {[%emt 0:00:03]} 43. Qxe6 {[%emt 0:00:17]} Qc5 {[%emt 0:09:05]} 44. Qe4+ {[%emt 0:01:36]} Kg8 {[%emt 0:00:11]} 45. Qe8+ {[%emt 0:00:43]} Kh7 {[%emt 0:01:21]} 46. Qe4+ {[%emt 0:00:28]} Kg8 $1 {[%emt 0:00:11]} 47. Kg3 {[%emt 0:00:33]} Qg5+ {[%emt 0:01:06]} 48. Kf2 {[%emt 0:03:07]} Qc5+ {[%emt 0:02:36]} 49. Qe3 {[%emt 0:00:46]} Qc2+ {[%emt 0:00:06]} 50. Kf1 {[%emt 0:01:06]} Qb1+ {[%emt 0:03:10]} 51. Kf2 {[%emt 0:00:34]} Qc2+ $1 {[%emt 0:00:12]} 52. Kf1 {[%emt 0:00:14]} Qb1+ {[%emt 0:00:04]} 53. Qe1 $1 {[%emt 0:00:07]} Qb6 {[%emt 0:00:43]} 54. Qe8+ {[%emt 0:01:05]} Kh7 {[%emt 0:00:02]} 55. Qe4+ {[%emt 0:00:12]} Kg8 {[%emt 0:00:08]} 56. h4 {[%emt 0:01:19]} Qc5 {[%emt 0:02:54]} 57. g4 {[%emt 0:06:14]} Qc1+ {[%emt 0:00:44]} 58. Qe1 {[%emt 0:00:17]} Qc4+ {[%emt 0:02:41]} 59. Qe2 {[%emt 0:00:21]} Qc1+ {[%emt 0:00:05]} 60. Kg2 {[%emt 0:00:08]} Kf7 {[%emt 0:01:30]} 61. Qa2+ {[%emt 0:02:17]} Kf8 {[%emt 0:00:08]} 62. Qa8+ {[%emt 0:00:47]} Kf7 {[%emt 0:00:01]} 63. Qd5+ {[%emt 0:00:07]} Kf8 {[%emt 0:00:06]} 64. h5 {[%emt 0:00:56]} (64. g5 $16) 64... Qc2+ {[%emt 0:02:27]} 65. Kg3 {[%emt 0:00:10]} Qc7+ {[%emt 0:01:45]} 66. Kf2 {[%emt 0:02:48]} Qh2+ {[%emt 0:03:56]} 67. Ke3 {[%emt 0:00:22]} Qg1+ {[%emt 0:01:12]} 68. Kf4 {[%emt 0:01:01]} Qc1+ {[%emt 0:00:58]} 69. Kf5 {[%emt 0:00:55]} Qc2+ {[%emt 0:00:21]} 70. Kf4 {[%emt 0:08:43]} Qc1+ {[%emt 0:00:12]} 71. Ke4 {[%emt 0:00:42]} Qb1+ {[%emt 0:02:21]} 72. Qd3 {[%emt 0:01:49]} Qe1+ {[%emt 0:01:31]} 73. Kd5 {[%emt 0:03:56]} Qa5+ {[%emt 0:01:01]} 74. Kc4 {[%emt 0:01:17]} Qc7+ {[%emt 0:00:55]} 75. Kb3 {[%emt 0:00:28]} Qb6+ {[%emt 0:00:17]} 76. Kc2 {[%emt 0:00:30]} Qf2+ {[%emt 0:00:05]} 77. Kd1 {[%emt 0:00:21]} Qg1+ {[%emt 0:00:10]} 78. Ke2 {[%emt 0:02:18]} Qg2+ {[%emt 0:00:05]} 79. Ke3 {[%emt 0:00:07]} Qg1+ {[%emt 0:00:11]} 80. Ke4 {[%emt 0:01:12]} Qe1+ {[%emt 0:00:05]} 81. Qe3 {[%emt 0:00:12]} Qb1+ {[%emt 0:01:18]} 82. Kf4 {[%emt 0:00:14]} Qb8+ {[%emt 0:00:32]} 83. Kf5 {[%emt 0:00:42] Kg6 would now be deadly.} Qb1+ {[%emt 0:00:05]} 84. Ke6 {[%emt 0:00:47]} Qa2+ {[%emt 0:00:47]} 85. Kd6 {[%emt 0:00:55]} Qa6+ {[%emt 0:00:31]} 86. Kc7 {[%emt 0:00:08]} Qc4+ {[%emt 0:02:01]} 87. Kd7 {[%emt 0:00:18][%csl Gd7][%cal Re3e8]} Qd5+ {[%emt 0:00:38]} 88. Kc7 {[%emt 0:00:05]} Qc4+ {[%emt 0:00:08]} 89. Kb6 {[%emt 0:00:12]} Qb4+ {[%emt 0:00:19]} 90. Kc6 {[%emt 0:00:08]} Qa4+ {[%emt 0:00:21]} 91. Kd5 {[%emt 0:00:18]} Qa2+ {[%emt 0:00:49]} 92. Kd4 {[%emt 0:00:37]} Qa1+ {[%emt 0:00:37]} 93. Qc3 {[%emt 0:00:24]} Qd1+ {[%emt 0:01:06]} 94. Ke3 {[%emt 0:00:22]} Qg1+ {[%emt 0:00:14]} 95. Kf4 {[%emt 0:00:20]} Kg8 {[%emt 0:02:02]} 96. Qc8+ {[%emt 0:01:19]} Kh7 {[%emt 0:00:02]} 97. Qc2+ {[%emt 0:00:07]} Kh8 {[%emt 0:01:31]} 98. Qd2 {[%emt 0:00:34]} Qc5 {[%emt 0:00:37][%csl Gf6][%cal Rc5e5]} 99. Kg3 {[%emt 0:00:45]} Qg1+ {[%emt 0:00:14]} 100. Qg2 {[%emt 0:00:17]} Qe1+ {[%emt 0:01:02]} 101. Qf2 {[%emt 0:00:02]} Qc3 {[%emt 0:00:23]} 102. Qe2 {[%emt 0:00:23]} Qc1 {[%emt 0:00:25]} 103. Kg2 {[%emt 0:00:50]} Kh7 {[%emt 0:00:39]} 104. Qe4+ {[%emt 0:00:10]} Kh8 {[%emt 0:00:02]} 105. f4 {[%emt 0:00:20]} Qd2+ {[%emt 0:00:21]} 106. Kg3 {[%emt 0:00:10]} Qc3+ {[%emt 0:01:07]} 107. Kh4 {[%emt 0:00:26]} Qd2 {[%emt 0:00:33][%cal Rd2h2]} 108. g5 {[%emt 0:00:45]} fxg5+ {[%emt 0:00:20]} 109. fxg5 {[%emt 0:01:01]} Qh2+ {[%emt 0:00:36]} 110. Kg4 {[%emt 0:00:03]} Qg1+ {[%emt 0:00:05]} 111. Kf5 {[%emt 0:00:19]} Qc5+ {[%emt 0:00:45]} 112. Kg6 {[%emt 0:00:48]} Qd6+ {[%emt 0:00:24]} 113. Kf7 {[%emt 0:00:16]} Qc7+ {[%emt 0:01:24]} 114. Kf8 {[%emt 0:00:41]} Qc5+ {[%emt 0:00:28]} 115. Kf7 {[%emt 0:00:35]} Qc7+ {[%emt 0:00:12]} ({And not} 115... Qxg5 116. Qe8+ Kh7 117. Qg8+ Kh6 118. Qh8#) 116. Qe7 {[%emt 0:00:22]} Qc4+ {[%emt 0:00:43]} 117. Qe6 {[%emt 0:00:24]} Qc7+ {[%emt 0:00:32]} 118. Kf8 {[%emt 0:00:58][%csl Gf8][%cal Re6g8]} (118. Qe7 $5 Qc4+ $8 119. Qe6 Qf1+ 120. Ke7 $11) 118... Qc5+ {[%emt 0:00:29]} 119. Qe7 {[%emt 0:00:24]} Qf5+ {[%emt 0:00:16]} 120. Ke8 {[%emt 0:01:00]} Qb5+ {[%emt 0:00:26]} 121. Kd8 {[%emt 0:00:46]} Qb8+ {[%emt 0:00:53]} 122. Kd7 {[%emt 0:00:04] Qe8+ would kill now.} Qb7+ {[%emt 0:00:05]} 123. Ke8 {[%emt 0:02:04]} Qb5+ {[%emt 0:00:06]} 124. Kf8 {[%emt 0:00:20][%csl Gf8][%cal Re7g7]} Qf5+ {[%emt 0:00:15]} 125. Qf7 {[%emt 0:01:04]} Qc5+ {[%emt 0:00:12]} 126. Qe7 {[%emt 0:00:12]} 1/2-1/2

[Event "German Bundesliga 2024-25"]
[Site "Germany"]
[Date "2025.01.11"]
[Round "5.6"]
[White "Socko, Bartosz"]
[Black "Ganguly, Surya Shekhar"]
[Result "1-0"]
[Annotator "TA"]
[ECO "C45"]
[WhiteElo "2553"]
[BlackElo "2578"]
[PlyCount "113"]
[EventDate "2024.09.27"]
[EventType "team-tourn"]
[EventCountry "GER"]
[SourceTitle "playchess.com"]
[Source "ChessBase"]
[SourceQuality "1"]
[WhiteTeam "St. Pauli"]
[BlackTeam "SG Solingen"]
[TimeControl "40/5400+30:1800+30"]

{[%evp 51,113,445,479,469,470,476,531,406,407,408,472,474,934,897,1375,1021,993,465,853,442,453,453,452,439,446,443,519,370,363,345,362,362,361,355,359,357,335,328,482,476,485,480,553,533,568,566,514,500,498,515,507,496,459,479,845,844,1738,1727,29975,29976,29977,29978,29965,29953]} 1. e4 {[%emt 0:00:03]} e5 {[%emt 0:00:15]} 2. Nf3 {[%emt 0:00:06]} Nc6 {[%emt 0:00:05]} 3. d4 {[%emt 0:00:06]} exd4 {[%emt 0:00:13]} 4. Nxd4 {[%emt 0:00:05]} Bc5 {[%emt 0:00:12]} 5. Nb3 {[%emt 0:00:48]} Bb6 {[%emt 0:00:07]} 6. Nc3 {[%emt 0:00:09]} d6 {[%emt 0:02:20]} 7. Qe2 {[%emt 0:02:19]} a5 {[%emt 0:02:28]} 8. a4 {[%emt 0:05:23]} Nge7 {[%emt 0:02:25]} 9. Be3 {[%emt 0:02:59]} Bxe3 {[%emt 0:01:02]} 10. Qxe3 {[%emt 0:00:05]} O-O {[%emt 0:04:37]} 11. Bc4 {[%emt 0:03:14]} Nb4 {[%emt 0:09:10]} 12. O-O-O {[%emt 0:03:40]} Be6 {[%emt 0:01:05]} 13. Bxe6 {[%emt 0:02:46]} fxe6 {[%emt 0:00:06]} 14. f4 {[%emt 0:01:41]} Qe8 {[%emt 0:03:17]} 15. Nb5 {[%emt 0:09:35]} Nc8 {[%emt 0:06:41]} 16. N3d4 {[%emt 0:09:08]} Rf7 {[%emt 0:03:37]} 17. f5 {[%emt 0:17:16]} exf5 {[%emt 0:09:39]} 18. Qb3 {[%emt 0:00:09]} Na6 {[%emt 0:17:12]} 19. Ne6 {[%emt 0:01:28]} Qe7 {[%emt 0:00:38]} 20. exf5 {[%emt 0:13:14]} c6 {[%emt 0:00:53]} 21. Rhe1 {[%emt 0:10:13]} cxb5 {[%emt 0:01:39]} 22. axb5 {[%emt 0:00:08]} a4 {[%emt 0:04:43]} 23. Qc3 {[%emt 0:00:24]} a3 {[%emt 0:11:22]} 24. bxa3 {[%emt 0:03:53]} Nc5 {[%emt 0:00:42]} 25. Nxc5 {[%emt 0:01:10]} Qg5+ {[%emt 0:00:05]} 26. Kb1 {[%emt 0:01:55]} (26. Qd2 Qxd2+ (26... Qxf5 $2 27. Re8+ Rf8 28. Rxf8+ Qxf8 29. Qd5+ Kh8 30. Ne6 $18) 27. Rxd2 dxc5 28. Rd8+ Rf8 $17) 26... Na7 {[%emt 0:02:27]} 27. Ne4 {[%emt 0:03:00]} (27. Rxd6 $2 Nxb5 28. Qd3 (28. Qd2 $2 Nxa3+ 29. Kc1 Qxd2+ 30. Rxd2 Nc4 $19) 28... Nxd6 29. Qxd6 Qxf5 $19 (29... Rxf5 $2 30. Qe6+ Kh8 31. Nd7 $19)) 27... Qxf5 {[%emt 0:05:52]} (27... Nxb5 28. Qb3 Qxf5 29. a4 (29. Nxd6 Nxd6 30. Rxd6 Kh8 $16)) 28. a4 {[%emt 0:01:10]} ({Worse is} 28. Rxd6 Nxb5 29. Qb3 Nxa3+ (29... Nxd6 $2 30. Nxd6 Qf6 31. Re6 $18) 30. Kc1 Kh8 $15) 28... Nxb5 {[%emt 0:00:08]} 29. axb5 {[%emt 0:02:01]} Qxb5+ {[%emt 0:00:02]} 30. Qb3 {[%emt 0:01:47]} Qa5 {[%emt 0:00:37]} 31. Kb2 {[%emt 0:00:06]} (31. Nxd6 $2 Qa1#) 31... Qe5+ {[%emt 0:00:59]} (31... Qa4 $142 32. Qxa4 (32. Nxd6 Qxb3+ 33. Kxb3 Rf2 $18) 32... Rxa4 33. Nxd6 (33. Rxd6 h6 $18) 33... Rf8) 32. Nc3 $18 {[%emt 0:00:31]} Qxh2 {[%emt 0:00:41]} 33. Re7 {[%emt 0:01:01]} Qf4 {[%emt 0:00:06]} 34. Rxd6 {[%emt 0:00:54]} Kh8 {[%emt 0:00:20]} (34... Kf8 $142) 35. Rxf7 {[%emt 0:03:53]} Qxd6 {[%emt 0:00:02]} 36. Rxb7 {[%emt 0:00:22]} h6 {[%emt 0:00:06]} 37. Qb4 {[%emt 0:00:35]} Qg3 {[%emt 0:01:16]} 38. Qe4 {[%emt 0:00:38]} Qf2 {[%emt 0:02:03]} 39. Qg6 {[%emt 0:01:25]} Qf8 {[%emt 0:00:17]} 40. Rb3 {[%emt 0:00:35]} Qf1 {[%emt 0:00:32]} 41. Nb1 {[%emt 0:02:48]} Qf4 {[%emt 0:00:47]} 42. Qc6 {[%emt 0:01:12]} Qd4+ {[%emt 0:00:51]} 43. Qc3 {[%emt 0:00:38]} ({Resist} 43. Nc3 Qa7 44. Nb1 Qa1+ 45. Kc1 Rf8 $18) 43... Qd5 {[%emt 0:03:05]} 44. Qc7 {[%emt 0:02:08]} Qd4+ {[%emt 0:01:15]} (44... Kh7 $142 45. g3 Qe6) 45. Nc3 $18 {[%emt 0:00:51]} Kh7 {[%emt 0:00:32]} 46. Rb8 {[%emt 0:01:29]} Ra4 {[%emt 0:03:21]} 47. Kb3 {[%emt 0:06:44]} Ra6 {[%emt 0:12:38]} 48. Rh8+ {[%emt 0:02:40]} Kg6 {[%emt 0:00:21]} 49. Qg3+ {[%emt 0:01:01]} Kf7 {[%emt 0:00:23]} 50. Qf3+ {[%emt 0:03:00]} Kg6 {[%emt 0:01:03]} 51. Qd3+ {[%emt 0:01:05]} Qxd3 {[%emt 0:00:06]} 52. cxd3 {[%emt 0:00:03]} Kf5 {[%emt 0:00:09]} (52... Kf7 $142 53. Ne4 Rb6+ 54. Kc4 Ra6) 53. d4 $18 {[%emt 0:01:49]} Kf4 {[%emt 0:00:27]} 54. d5 {[%emt 0:01:40]} Kg3 {[%emt 0:00:44]} 55. d6 {[%emt 0:00:38]} Ra7 {[%emt 0:00:03]} 56. Ne4+ {[%emt 0:01:03]} Kxg2 {[%emt 0:00:06]} 57. Nc5 {[%emt 0:00:03]} 1-0